[Event "Karel Janecek Open 2025"]
[Site "Prague"]
[Date "2025.03.07"]
[Round "9.2"]
[White "Grigoryan, Karen H."]
[Black "Vykouk, Jan"]
[Result "1-0"]
[Annotator "TA"]
[ECO "D05"]
[WhiteElo "2554"]
[BlackElo "2478"]
[PlyCount "125"]
[EventDate "2025.02.21"]
[EventType "swiss"]
[EventCountry "CZE"]
[SourceTitle "playchess.com"]
[Source "ChessBase"]
[SourceQuality "1"]
[TimeControl "40/5400+30:1800+30"]

{[%evp 9,125,10,7,4,4,3,9,8,18,11,10,10,10,10,10,0,0,0,0,0,0,0,35,0,-8,0,0,-18,0,-43,0,0,0,0,0,-12,0,-6,0,0,0,-31,-9,-27,-24,-24,-19,-19,-12,-30,8,0,11,-11,37,41,18,18,101,77,91,96,104,103,122,122,122,116,120,113,118,105,185,124,127,108,100,111,121,100,166,164,156,159,152,160,215,225,276,264,277,308,296,239,279,272,276,243,289,281,294,297,312,282,520,502,592,370,370,370,1062,1001,1221,1308,1407,1383,1260,721]} 1. Nf3 {[%emt 0:00:39]} Nf6 {[%emt 0:00:10]} 2. d4 {[%emt 0:00:10]} e6 {[%emt 0:00:28]} 3. e3 {[%emt 0:00:26]} d5 {[%emt 0:01:16]} 4. Bd3 {[%emt 0:00:10]} b6 {[%emt 0:01:52]} 5. b3 {[%emt 0:00:17]} Bb7 {[%emt 0:00:53]} 6. Bb2 {[%emt 0:00:10] D05: Colle System with ...e6.} c5 {[%emt 0:01:50]} 7. Nbd2 {[%emt 0:01:13]} Nc6 {[%emt 0:01:58]} 8. O-O {[%emt 0:00:46] The position is equal.} Be7 {[%emt 0:00:29][%cal Bf8e7,Be7d6,Bd6f4][%mdl 32] 8...Be7 has lost popularity.} 9. a3 {[%emt 0:00:51]} a5 {[%emt 0:02:49]} 10. c4 {[%emt 0:02:24]} cxd4 {[%emt 0:01:33]} 11. exd4 {[%emt 0:01:17]} O-O {[%emt 0:00:30]} 12. Rc1 {[%emt 0:01:12]} Rc8 {[%emt 0:06:12]} 13. Re1 {[%emt 0:00:15]} Bd6 {[%emt 0:01:14]} 14. Nb1 {[%emt 0:10:09][%cal Bd2b1,Bb1c3,Bc3b5][%mdl 32]} Ne7 $146 {[%emt 0:02:54]} (14... Bf4 15. Rc2 a4 16. b4 dxc4 17. Rxc4 Ne7 18. Rxc8 Qxc8 19. g3 Qc6 20. Be2 Bd6 {½-½ Sodomski,A (2343)-Perry,W (2268) VW-Cup12 Gr08 email 2019}) 15. Nc3 {[%emt 0:02:01]} Ng6 {[%emt 0:04:10]} 16. Nb5 {[%emt 0:00:25]} Bf4 {[%emt 0:00:09]} 17. Rc2 {[%emt 0:00:45]} a4 {[%emt 0:04:25]} 18. bxa4 {[%emt 0:04:04]} dxc4 {[%emt 0:01:17]} 19. Rxc4 {[%emt 0:00:11]} Rxc4 {[%emt 0:00:49]} 20. Bxc4 {[%emt 0:00:06]} Qa8 {[%emt 0:02:11]} 21. Be2 $1 {[%emt 0:00:17]} Bb8 {[%emt 0:06:51]} 22. Bc1 {[%emt 0:05:22]} Rc8 {[%emt 0:01:25]} 23. Bd2 {[%emt 0:08:57]} Nf4 {[%emt 0:08:09]} 24. Bxf4 $1 {[%emt 0:00:07]} Bxf4 {[%emt 0:00:03]} 25. Qb3 {[%emt 0:05:30]} Bb8 {[%emt 0:03:21][%mdl 1024] Black has compensation.} 26. Ra1 {[%emt 0:11:43]} g6 {[%emt 0:09:55]} 27. Ne1 {[%emt 0:04:07]} Bd5 {[%emt 0:06:09] This pair of bishops is nice.} 28. Qb4 {[%emt 0:00:20]} Kg7 {[%emt 0:10:58]} 29. Bf1 {[%emt 0:06:43]} Qa5 {[%emt 0:07:19]} 30. g3 {[%emt 0:07:55]} Ne4 {[%emt 0:00:37]} 31. Bg2 {[%emt 0:00:29]} Rc4 {[%emt 0:00:48]} (31... Qa8 $11) 32. Qxa5 $14 {[%emt 0:00:12]} bxa5 {[%emt 0:00:06]} 33. Nd3 {[%emt 0:00:06]} Nf6 {[%emt 0:01:54]} (33... Rxa4 $2 34. Nb2 Bc6 35. Nxa4 $18) (33... f5 $11 {remains equal.}) 34. Nc5 {[%emt 0:00:38]} Bxg2 {[%emt 0:01:47]} 35. Kxg2 {[%emt 0:00:06]} Ne8 {[%emt 0:01:10]} 36. Kf3 {[%emt 0:02:35]} Bd6 {[%emt 0:00:04]} 37. Nb7 {[%emt 0:00:59]} Bc7 {[%emt 0:00:14]} 38. Ke3 {[%emt 0:02:28]} Bb6 {[%emt 0:03:23]} 39. Kd3 {[%emt 0:00:18] Prevents Rc2.} Rc6 {[%emt 0:00:09]} (39... Rxa4 $2 40. Nc5 Bxc5 41. dxc5 $18) 40. Rb1 {[%emt 0:02:56]} Kf6 {[%emt 0:01:41] [#]} (40... g5 $16 41. f3 h5) 41. Nc5 $1 {[%emt 0:33:24][%mdl 512]} Ke7 $16 {[%emt 0:31:51]} (41... Bxc5 42. Rc1 $16 (42. dxc5 Rxc5 43. Nc3 Nd6 $15)) 42. f4 {[%emt 0:02:03]} h5 {[%emt 0:01:51]} (42... Bxc5 43. Rc1 (43. dxc5 Rxc5 44. Nc3 Nd6 $11) 43... Nf6 44. dxc5 $18 (44. Rxc5 Kd7 $14)) 43. Ne4 {[%emt 0:02:20] White is more active.} Kd7 {[%emt 0:00:00]} 44. Nbc3 {[%emt 0:00:00]} Nc7 {[%emt 0:00:00]} (44... Nd6 $16 45. Nd2 f6) 45. Nd2 $18 {[%emt 0:00:00]} Nd5 {[%emt 0:00:00]} 46. Nxd5 {[%emt 0:00:00]} exd5 $16 {[%emt 0:00:00][%mdl 4096] Endgame KRB-KRN. White is a pawn up.} 47. Rb5 {[%emt 0:00:00]} Ke6 {[%emt 0:00:00]} (47... Rd6 $16 {keeps fighting.} 48. Nf3 Kc7) 48. Nb3 $18 {[%emt 0:00:00]} Bc7 {[%emt 0:00:32]} 49. Nxa5 {[%emt 0:00:00]} Bxa5 {[%emt 0:00:58]} 50. Rxa5 {[%emt 0:00:00] KR-KR. White is two pawns up.} Rc4 {[%emt 0:00:10]} 51. Ra6+ {[%emt 0:00:00]} Kf5 {[%emt 0:01:04]} 52. Ra7 {[%emt 0:00:00]} f6 {[%emt 0:03:01]} 53. Ra5 {[%emt 0:00:00]} Kg4 {[%emt 0:00:12]} 54. Rxd5 {[%emt 0:00:00]} Rxa4 {[%emt 0:00:03] [#]} 55. Ke4 $1 {[%emt 0:00:00]} Ra6 {[%emt 0:00:54] Wards off Rd6} 56. Rb5 {[%emt 0:00:00]} (56. f5 gxf5+ 57. Kd3 (57. Rxf5 $2 {perishes.} Re6+ 58. Kd5 Kxf5 $19) 57... Rxa3+ 58. Kc4 h4 $11) 56... Kh3 $2 {[%emt 0:00:27]} (56... Rxa3 57. Rb6 f5+ 58. Ke5 Re3+ 59. Kd5 Kh3 60. Rxg6 Kxh2) 57. Rb2 {[%emt 0:00:00]} ({Inferior is} 57. f5 g5 $11) 57... Rxa3 {[%emt 0:01:04]} 58. d5 {[%emt 0:00:00]} Ra4+ {[%emt 0:00:29]} 59. Ke3 {[%emt 0:00:00]} Ra3+ $2 {[%emt 0:00:59]} (59... Kg4 60. d6 Kf5) 60. Kd4 {[%emt 0:00:00] White is clearly winning.} h4 {[%emt 0:02:48]} 61. gxh4 {[%emt 0:00:00]} Ra4+ {[%emt 0:00:18]} 62. Kc5 {[%emt 0:00:00]} Rxf4 {[%emt 0:00:17]} 63. Rb4 {[%emt 0:00:00] Weighted Error Value: White=0.11 (very precise) /Black=0.33  Mistake:       	White=1     	Black=7      Inaccurate:     	White=4     	Black=3      OK:         	White=20    	Black=23     Best:        	White=2     	Black=2      Strong:       	White=3     	---} 1-0

[Event "Karel Janecek Open 2025"]
[Site "Prague"]
[Date "2025.03.07"]
[Round "9.3"]
[White "Beerdsen, Thomas"]
[Black "Isik, Alparslan"]
[Result "1-0"]
[Annotator "TA"]
[ECO "B66"]
[WhiteElo "2511"]
[BlackElo "2477"]
[PlyCount "81"]
[EventDate "2025.02.21"]
[EventType "swiss"]
[EventCountry "CZE"]
[SourceTitle "playchess.com"]
[Source "ChessBase"]
[SourceQuality "1"]
[TimeControl "40/5400+30:1800+30"]

{[%evp 15,81,33,40,25,26,18,42,15,19,0,33,0,9,10,21,24,27,6,75,71,62,62,75,67,68,83,84,62,64,71,91,82,88,83,86,82,81,72,89,68,131,115,158,105,102,102,250,241,372,361,372,371,361,336,426,385,559,484,510,521,521,521,521,518,487,487,447,439]} 1. e4 {[%emt 0:00:04]} c5 {[%emt 0:07:49]} 2. Nf3 {[%emt 0:00:05]} d6 {[%emt 0:00:04]} 3. d4 {[%emt 0:00:06]} cxd4 {[%emt 0:00:03]} 4. Nxd4 {[%emt 0:00:05]} Nf6 {[%emt 0:00:04]} 5. Nc3 {[%emt 0:00:06]} Nc6 {[%emt 0:00:04]} 6. Bg5 {[%emt 0:07:34]} e6 {[%emt 0:00:12]} 7. Qd2 {[%emt 0:00:42]} a6 {[%emt 0:00:05]} 8. O-O-O {[%emt 0:00:32]} Be7 {[%emt 0:00:05]} 9. Kb1 {[%emt 0:05:55] B66: Sicilian: Richter-Rauzer: 7...a6 8 0-0-0 h6.} Nxd4 {[%emt 0:05:24]} 10. Qxd4 {[%emt 0:00:12]} Qc7 {[%emt 0:00:44]} 11. f3 {[%emt 0:07:38] A sharp opening. White is slightly better.} b5 {[%emt 0:00:29]} 12. g4 {[%emt 0:04:10][%cal Bg2g4,Bg4g5][%mdl 32]} Bb7 {[%emt 0:03:02]} 13. Bc1 {[%emt 0:12:10]} O-O {[%emt 0:01:48][%cal Ob5b4]} 14. g5 {[%emt 0:01:36]} Nd7 {[%emt 0:00:22]} 15. h4 $146 {[%emt 0:02:57][%cal Bh2h4,Bh4h5,Bh5h6][%mdl 32]} (15. Qf2 b4 16. Ne2 Rfc8 17. Nd4 d5 18. Bh3 Bc5 19. Qe2 Bxd4 20. Rxd4 dxe4 21. Rxb4 exf3 {0-1 Alexieva,S (2334)-Peptan,C (2480) EU-ch (Women) 3rd 2002 (7)}) 15... Rac8 {[%emt 0:10:49]} 16. h5 {[%emt 0:07:54]} Nb6 {[%emt 0:12:47]} (16... Qc5 $11) 17. h6 $16 {[%emt 0:07:13][%csl Gh6][%cal Rd4g7] White is more active.} e5 {[%emt 0:00:24]} 18. Qf2 {[%emt 0:00:12]} g6 {[%emt 0:00:31]} 19. Be3 {[%emt 0:00:28]} Nc4 {[%emt 0:04:39]} 20. Bxc4 {[%emt 0:00:58]} Qxc4 {[%emt 0:00:50]} 21. Nd5 {[%emt 0:01:32][%csl Od5] Strong Square White (d5)} Bxd5 {[%emt 0:03:14]} 22. Rxd5 {[%emt 0:00:13]} Rfe8 {[%emt 0:05:49]} 23. Rhd1 {[%emt 0:01:22] White has strong rooks and is better} Bf8 {[%emt 0:00:47]} 24. R1d3 {[%emt 0:08:18][%csl Od6] White attacks a weakness} Qc6 {[%emt 0:01:15]} 25. Bc1 {[%emt 0:02:27]} Qd7 {[%emt 0:02:43]} 26. b3 $36 {[%emt 0:04:09][%mdl 2048] White has strong initiative.} Rc6 {[%emt 0:01:37]} 27. f4 {[%emt 0:05:50]} exf4 {[%emt 0:06:07][%csl Od6,Of7] Black has weak pawns} (27... Qg4 $14) 28. e5 {[%emt 0:06:09]} ({Don't play} 28. Bxf4 $6 Rxe4 29. Bxd6 Rxd6 $11) 28... Qe6 {[%emt 0:12:21] [#]} 29. Bxf4 {[%emt 0:06:30]} (29. Bb2 $142 $1) 29... dxe5 {[%emt 0:04:50]} 30. Bxe5 {[%emt 0:04:06]} Be7 {[%emt 0:03:20] This move loses the game for Black.} (30... Rcc8 $16) 31. Bb2 $18 {[%emt 0:01:04]} Qg4 {[%emt 0:05:48]} (31... f6 $142 32. Qf3 Qe1+ 33. Rd1 Qe6) 32. Qe1 {[%emt 0:02:28][%cal Od5d8] Intending Rd8! and mate.} Re6 {[%emt 0:01:23] [#]} 33. Qc3 {[%emt 0:00:09]} f6 {[%emt 0:00:01][%cal Bf7f6,Bf6f5][%mdl 32]} 34. a3 {[%emt 0:00:42] aiming for Ka2.} Qe4 {[%emt 0:05:51]} 35. Ka2 {[%emt 0:00:44]} Kf7 {[%emt 0:00:56]} (35... Rf8 $142 36. Rd7 Qe5 37. gxf6 (37. Qxe5 fxe5 38. Rc3 e4 $16) 37... Bxf6 38. Qxe5 Rxe5 39. Bxe5 Bxe5) 36. Rd7 {[%emt 0:00:50] White is clearly winning.} Rc6 {[%emt 0:00:07]} 37. Qd2 {[%emt 0:00:43]} f5 {[%emt 0:00:45]} 38. Re3 {[%emt 0:00:36]} Rxc2 {[%emt 0:01:27]} 39. Rxe4 {[%emt 0:00:24]} Rxd2 {[%emt 0:00:04]} 40. Rexe7+ {[%emt 0:00:05]} Rxe7 {[%emt 0:00:02]} 41. Rxd2 {[%emt 0:30:06] Weighted Error Value: White=0.11 (very precise) /Black=0.30  Mistake:       	White=1     	Black=5      Inaccurate:     	White=2     	Black=2      OK:         	White=16    	Black=12     Best:        	White=2     	Black=6} 1-0

[Event "Karel Janecek Open 2025"]
[Site "Prague"]
[Date "2025.03.07"]
[Round "9.4"]
[White "Kistrup, Nicolai"]
[Black "Ioannidis, Evgenios"]
[Result "1/2-1/2"]
[Annotator "TA"]
[ECO "B30"]
[WhiteElo "2374"]
[BlackElo "2484"]
[PlyCount "86"]
[EventDate "2025.02.21"]
[EventType "swiss"]
[EventCountry "CZE"]
[SourceTitle "playchess.com"]
[Source "ChessBase"]
[SourceQuality "1"]
[TimeControl "40/5400+30:1800+30"]

{[%evp 10,86,24,14,38,42,43,45,42,0,6,19,49,64,131,129,212,212,243,147,240,246,229,178,169,123,142,60,73,72,97,59,42,0,0,0,0,0,0,0,31,21,14,22,51,1,16,11,30,-153,0,0,0,-17,-17,-17,-17,-17,-17,-17,-17,-17,-17,-17,-17,-102,-93,-432,0,0,0,0,0,0,0,0,0,0,0]} 1. e4 {[%emt 0:02:15]} c5 {[%emt 0:00:13]} 2. Nf3 {[%emt 0:00:36]} Nc6 {[%emt 0:00:08]} 3. Bb5 {[%emt 0:00:15]} e6 {[%emt 0:00:28]} 4. O-O {[%emt 0:00:25]} Nge7 {[%emt 0:00:06]} 5. d4 {[%emt 0:00:07]} cxd4 {[%emt 0:02:23]} 6. Nxd4 {[%emt 0:00:11]} Ng6 {[%emt 0:00:32] B30: Sicilian: 2...Nc6 3 Bb5, lines without ...g6.} 7. Be3 {[%emt 0:10:36]} Qc7 {[%emt 0:05:11]} 8. Nc3 {[%emt 0:10:48]} a6 {[%emt 0:07:46] White is slightly better.} 9. Bxc6 {[%emt 0:16:05]} bxc6 {[%emt 0:02:47]} 10. f4 $146 {[%emt 0:03:11]} (10. Nde2 c5 11. f4 Bb7 12. f5 Ne5 13. fxe6 fxe6 14. Nf4 O-O-O 15. Qe2 Be7 16. Nd3 {0-1 Cid Royo,J (2251)-Merino Garcia,R (2330) ESP-ch Palencia 1999 (9)}) 10... Bb7 {[%emt 0:06:50]} 11. Qh5 {[%emt 0:10:37]} O-O-O {[%emt 0:05:05]} (11... c5 $14 12. Nb3 c4) 12. Nb3 {[%emt 0:03:33] White is much more active. The black rooks are passive.} d5 {[%emt 0:16:44]} (12... c5 $16) 13. Na4 $18 {[%emt 0:08:07]} c5 {[%emt 0:01:58]} 14. Naxc5 {[%emt 0:07:29]} (14. Bxc5 $6 Qc6 $16) (14. Nbxc5 d4) 14... Bxc5 {[%emt 0:00:52]} (14... dxe4 $16 {was worth a try.} 15. Qe2 Bxc5 16. Nxc5 Qc6) 15. Nxc5 {[%emt 0:00:49]} dxe4 {[%emt 0:00:51]} 16. Qe2 {[%emt 0:02:09]} Rd6 {[%emt 0:02:48]} 17. a4 {[%emt 0:01:23]} (17. b4 $18) 17... Ne7 $16 {[%emt 0:00:29]} 18. Ra3 {[%emt 0:00:51]} (18. b4 $16) 18... Rc6 $1 $14 {[%emt 0:03:41]} 19. b4 {[%emt 0:04:13][%csl Oc5] Strong Square White (c5)} (19. Nxe4 Rxc2 $11) 19... Nd5 {[%emt 0:02:52] Prevents Rc3.} 20. Rb1 {[%emt 0:06:29]} (20. Nxe4 Rxc2 21. Qe1 (21. Nd6+ $2 Kb8 $19) 21... Rd8 $19) 20... Rd8 {[%emt 0:03:01]} 21. g3 {[%emt 0:06:01]} (21. Nxe4 $2 Rxc2 (21... Nxf4 22. Bxf4 Qxf4 23. Rf3 $14) 22. Bd2 Qb6+ (22... Nxf4 $2 23. Bxf4 Rxe2 24. Bxc7 $19) 23. Kh1 Nc7 $19 (23... Nxf4 $2 24. Rc3+ Rxc3 25. Bxf4 $19)) 21... a5 {[%emt 0:08:27]} 22. c3 {[%emt 0:00:50]} (22. Nxe4 $2 axb4 (22... Rxc2 $2 23. Qb5 $19) 23. Rab3 f5 $19 (23... Rxc2 $2 24. Qb5 $19)) 22... Nxe3 {[%emt 0:03:04]} 23. Qxe3 {[%emt 0:00:45]} Qb6 {[%emt 0:06:44][%cal Od8d3]} 24. Kf2 {[%emt 0:00:29]} (24. Qxe4 $2 Rxc5 25. Qe3 Rb5 26. Qxb6 Rxb6 $19) 24... f5 {[%emt 0:04:57]} 25. Rab3 {[%emt 0:01:16][%cal Ba3b3,Bb3b2,Bb2b8][%mdl 32]} Ba8 {[%emt 0:00:34]} 26. R3b2 {[%emt 0:01:42]} Rd5 {[%emt 0:04:11]} 27. Ke2 {[%emt 0:01:50]} (27. c4 Rd8 28. Kg2 axb4 29. Rxb4 Qxc5 $19) (27. Kf1 $1 $14) 27... h6 {[%emt 0:03:16]} (27... e5 $6 28. fxe5 Rh6 29. Kf1 $16) 28. h4 {[%emt 0:00:50]} h5 {[%emt 0:01:29]} (28... e5 $6 29. fxe5 Qc7 30. e6 $18) 29. bxa5 $2 {[%emt 0:00:35] [#]} ({Only move:} 29. Kf2 $1 $11) 29... Qxc5 $2 {[%emt 0:00:47]} (29... Qc7 $1 $17 30. Rb8+ Qxb8 31. Rxb8+ Kxb8) 30. Rb8+ $11 {[%emt 0:00:05]} Kc7 {[%emt 0:00:57]} 31. Qxc5 {[%emt 0:00:12]} Rcxc5 {[%emt 0:02:55]} 32. Rxa8 {[%emt 0:00:04]} Rxa5 {[%emt 0:00:02]} 33. Rbb8 {[%emt 0:01:39]} Rxa8 {[%emt 0:01:51]} 34. Rxa8 {[%emt 0:00:04][%mdl 4096] Endgame KR-KR} Rd3 {[%emt 0:00:03]} 35. Ra7+ {[%emt 0:00:35]} Kd6 {[%emt 0:00:16]} 36. Rxg7 {[%emt 0:00:09]} Rxc3 {[%emt 0:00:03]} 37. Rg5 {[%emt 0:01:13]} (37. a5 $1 $11 {remains equal.}) 37... Kd5 $17 {[%emt 0:00:09] ...Kd4 would now be deadly.} 38. Rxh5 $2 {[%emt 0:00:24][%mdl 8192] [#]} (38. Rg8 $17 {is more resistant.} Ra3 39. Rd8+ Kc5 40. Rc8+ Kd6 41. Rd8+ Kc6 42. Rc8+ Kd7 43. Ra8) 38... Rxg3 $2 {[%emt 0:00:06]} ({Better is} 38... Kd4 $1 $19 39. Rh6 Rc2+ (39... Rxg3 40. Rxe6 Rg2+ 41. Kf1 $17) 40. Kd1 Rc6) 39. Rh8 $1 $11 {[%emt 0:00:19] The position is equal.} Rh3 {[%emt 0:04:01]} 40. h5 {[%emt 0:00:39]} Rh2+ {[%emt 0:00:46]} 41. Ke3 {[%emt 0:01:42]} Rh3+ {[%emt 0:00:06]} 42. Ke2 {[%emt 0:00:59]} Rh2+ {[%emt 0:11:33]} 43. Ke3 {[%emt 0:00:09]} Rh3+ {[%emt 0:00:47] Never resign too early!   Weighted Error Value: White=0.38/Black=0.33  Loses game:     	White=1     	---        Missed win:     	---       	Black=1      Mistake:       	White=5     	Black=4      Inaccurate:     	White=4     	Black=2      OK:         	White=12    	Black=15     Best:        	White=3     	Black=1      Strong:       	White=1     	Black=1} 1/2-1/2

[Event "Karel Janecek Open 2025"]
[Site "Prague"]
[Date "2025.03.07"]
[Round "9.5"]
[White "Pechac, Jergus"]
[Black "Dhulipalla Bala Chandra Prasad"]
[Result "1-0"]
[Annotator "TA"]
[ECO "C55"]
[WhiteElo "2603"]
[BlackElo "2432"]
[PlyCount "69"]
[EventDate "2025.02.21"]
[EventType "swiss"]
[EventCountry "CZE"]
[SourceTitle "playchess.com"]
[Source "ChessBase"]
[SourceQuality "1"]
[TimeControl "40/5400+30:1800+30"]

{[%evp 13,69,37,36,31,34,28,33,21,33,33,39,54,55,33,39,36,72,68,55,68,49,46,50,53,21,34,50,51,125,75,120,22,134,67,135,103,90,93,88,93,170,174,220,207,286,277,283,287,255,294,537,535,521,504,4786,308,2014,1960]} 1. e4 {[%emt 0:02:02]} e5 {[%emt 0:00:04]} 2. Nf3 {[%emt 0:00:06]} Nc6 {[%emt 0:00:05]} 3. Bc4 {[%emt 0:00:05]} Nf6 {[%emt 0:00:04]} 4. d3 {[%emt 0:00:04]} Be7 {[%emt 0:00:25]} 5. O-O {[%emt 0:00:21]} O-O {[%emt 0:00:05]} 6. Re1 {[%emt 0:00:04]} d6 {[%emt 0:00:08]} 7. a4 {[%emt 0:00:04]} Be6 {[%emt 0:00:50]} 8. Bxe6 {[%emt 0:00:13] C55: Two Knights: 4 d3, 4 d4 exd4 5 e5 and Max Lange Attack.} fxe6 {[%emt 0:00:04]} 9. c3 {[%emt 0:00:05]} a5 {[%emt 0:03:51] now scores much better than the old 9...Qd7.} 10. Be3 $5 {[%emt 0:00:19][%mdl 4] White is slightly better. Exploring less charted territory.} d5 $146 {[%emt 0:04:35]} (10... Qd7 11. Nbd2 h6 12. Nc4 Rf7 13. Qb3 b6 14. Qb5 g5 15. h3 Raf8 16. Rad1 g4 17. hxg4 Nxg4 {0-1 Yu,Y (2715)-Abdusattorov,N (2766) Tashkent UzChess Masters 2024 (6)}) 11. Qb3 {[%emt 0:07:06]} Qd6 {[%emt 0:13:07]} 12. Nbd2 {[%emt 0:07:06]} Rad8 {[%emt 0:13:29]} 13. Re2 {[%emt 0:06:07]} (13. Qxb7 $2 Rb8 14. Qa6 Ra8 $19) (13. Rad1 {with more complications.} Ng4 14. Nc4 Qd7 15. h3) 13... b6 {[%emt 0:07:45]} 14. Rae1 {[%emt 0:01:06]} Kh8 {[%emt 0:03:44]} 15. Bg5 {[%emt 0:12:59]} Ng8 {[%emt 0:14:04]} 16. exd5 {[%emt 0:02:57]} exd5 {[%emt 0:00:25]} 17. Bxe7 {[%emt 0:02:39]} Ngxe7 {[%emt 0:00:06]} 18. Nxe5 {[%emt 0:00:16]} Nxe5 {[%emt 0:00:26]} 19. Rxe5 {[%emt 0:00:07]} Ng6 {[%emt 0:00:15]} 20. R5e3 {[%emt 0:02:36]} Qf4 {[%emt 0:19:41]} (20... Nf4 $14) 21. R1e2 {[%emt 0:22:22]} (21. Nf3 $142) 21... d4 {[%emt 0:01:19]} 22. Rf3 {[%emt 0:05:44]} (22. cxd4 $1 $16 {Nf3 is the strong threat.} Qxd4 23. Nf3) 22... Qg4 {[%emt 0:04:23] [#]} (22... Qg5 $1 $11 {remains equal.}) 23. h3 {[%emt 0:02:03]} ({White should try} 23. Re4 $1 $16 {[%cal Re4g4]} Qg5 24. Qc2 dxc3 25. Qxc3) 23... Qh5 {[%emt 0:00:55]} (23... Qg5 $1 $14) 24. cxd4 {[%emt 0:01:52]} Nf4 {[%emt 0:03:44]} 25. Re5 {[%emt 0:02:13]} Qg6 {[%emt 0:02:52][%csl Gf4][%cal Rg6g2]} 26. Rg3 {[%emt 0:00:02]} Qc6 {[%emt 0:02:26] [#]} (26... Qf6 $16) 27. Nf3 $1 $18 {[%emt 0:00:38][%cal Bd2f3,Bf3e5,Be5g6][%mdl 32]} Qf6 {[%emt 0:00:05]} (27... Qd6 $142 28. Re4 Nh5) 28. Re4 {[%emt 0:07:20]} c5 {[%emt 0:03:11]} 29. dxc5 {[%emt 0:01:32]} bxc5 {[%emt 0:00:04]} 30. Ne5 {[%emt 0:01:25]} Rd4 {[%emt 0:01:11] Strongly threatening ...Rxe4.} 31. Ree3 {[%emt 0:00:43]} Nxh3+ $2 {[%emt 0:01:47]} (31... Rb4 32. Qc2 Qd6) 32. Rxh3 {[%emt 0:00:40] Threatening mate with Ref3.} Qxf2+ {[%emt 0:00:03]} 33. Kh2 {[%emt 0:00:23][%cal Re5g6]} c4 {[%emt 0:01:14]} (33... Qf4+ $142 34. Rhg3 Rd6) 34. Ng6+ {[%emt 0:03:08]} Kg8 {[%emt 0:00:09]} 35. Qb6 {[%emt 0:00:13] Weighted Error Value: White=0.14 (very precise) /Black=0.69  Mistake:       	White=3     	Black=7      Inaccurate:     	---       	Black=4      OK:         	White=11    	Black=5      Best:        	White=3     	Black=1} 1-0